[Event "*** SCC Grand Prix: Titled Tuesday Blitz"]
[Site "Chess.com"]
[Date "2020.07.14"]
[Round "1"]
[White "AttackSparrow"]
[Black "aliba25"]
[Result "0-1"]
[WhiteElo "2295"]
[BlackElo "2603"]
[TimeControl "180+1"]
[EndTime "10:09:28 PDT"]
[Termination "aliba25 won by checkmate"]

1. e4 {[%clk 0:03:00.9]} 1... e6 {[%clk 0:02:59.1]} 2. d4 {[%clk 0:03:00.6]}
2... d5 {[%clk 0:02:59.2]} 3. Bd3 {[%clk 0:03:00.8]} 3... dxe4 {[%clk
0:02:58.4]} 4. Bxe4 {[%clk 0:03:01.7]} 4... Nf6 {[%clk 0:02:59.3]} 5. Bf3 {[%clk
0:03:02.1]} 5... c5 {[%clk 0:02:57.3]} 6. Ne2 {[%clk 0:03:02.2]} 6... Nc6 {[%clk
0:02:57.3]} 7. Be3 {[%clk 0:03:01.9]} 7... cxd4 {[%clk 0:02:57.7]} 8. Nxd4
{[%clk 0:03:02.8]} 8... Ne5 {[%clk 0:02:57.4]} 9. Nc3 {[%clk 0:03:02.3]} 9...
Bb4 {[%clk 0:02:56.7]} 10. Nb5 {[%clk 0:03:01.4]} 10... Bxc3+ {[%clk 0:02:40.9]}
11. bxc3 {[%clk 0:02:43.2]} 11... Nxf3+ {[%clk 0:02:39.9]} 12. Qxf3 {[%clk
0:02:36.1]} 12... O-O {[%clk 0:02:39.4]} 13. O-O {[%clk 0:02:35.3]} 13... Bd7
{[%clk 0:02:36.6]} 14. Rfd1 {[%clk 0:02:30.8]} 14... Nd5 {[%clk 0:02:26]} 15. c4
{[%clk 0:02:29.2]} 15... Nxe3 {[%clk 0:02:03.9]} 16. Qxe3 {[%clk 0:02:26.8]}
16... a6 {[%clk 0:02:00.7]} 17. Nd6 {[%clk 0:02:26]} 17... Qc7 {[%clk
0:01:55.3]} 18. h3 {[%clk 0:02:19.6]} 18... Bc6 {[%clk 0:01:54.1]} 19. Rab1
{[%clk 0:02:15.4]} 19... Rad8 {[%clk 0:01:53.4]} 20. Qc5 {[%clk 0:02:11.3]}
20... Rd7 {[%clk 0:01:48.3]} 21. Nb5 {[%clk 0:01:43.3]} 21... axb5 {[%clk
0:01:44]} 22. Rxd7 {[%clk 0:01:37.4]} 22... Qxd7 {[%clk 0:01:42.3]} 23. cxb5
{[%clk 0:01:37.9]} 23... Be4 {[%clk 0:01:40.8]} 24. Re1 {[%clk 0:01:30.9]} 24...
Bg6 {[%clk 0:01:37.2]} 25. a4 {[%clk 0:01:28.7]} 25... Rc8 {[%clk 0:01:35.7]}
26. Qb6 {[%clk 0:01:26.7]} 26... Rxc2 {[%clk 0:01:33.8]} 27. a5 {[%clk 0:01:27]}
27... h6 {[%clk 0:01:26.8]} 28. a6 {[%clk 0:01:26.3]} 28... bxa6 {[%clk
0:01:27.5]} 29. bxa6 {[%clk 0:01:27.2]} 29... Qd2 {[%clk 0:01:27.3]} 30. Ra1
{[%clk 0:01:26.6]} 30... Rc1+ {[%clk 0:01:24.1]} 31. Rxc1 {[%clk 0:01:26.3]}
31... Qxc1+ {[%clk 0:01:25]} 32. Kh2 {[%clk 0:01:26.7]} 32... Be4 {[%clk
0:01:25.4]} 33. Qd4 {[%clk 0:01:21.6]} 33... Bd5 {[%clk 0:01:20]} 34. a7 {[%clk
0:01:21.4]} 34... Qa3 {[%clk 0:01:15.4]} 35. Qb6 {[%clk 0:01:19]} 35... g5
{[%clk 0:01:08.6]} 36. f3 {[%clk 0:01:18.5]} 36... Kg7 {[%clk 0:01:06.3]} 37.
Qb8 {[%clk 0:01:18]} 37... Qa2 {[%clk 0:01:03.6]} 38. Qe5+ {[%clk 0:01:17.7]}
38... Kh7 {[%clk 0:01:02.6]} 39. Qd4 {[%clk 0:01:17.2]} 39... Kg8 {[%clk
0:00:38.3]} 40. Qb6 {[%clk 0:00:59.8]} 40... Bxf3 {[%clk 0:00:28.3]} 41. Qd8+
{[%clk 0:00:59.7]} 41... Kg7 {[%clk 0:00:26.5]} 42. Qd4+ {[%clk 0:00:59.7]}
42... Kf8 {[%clk 0:00:19.6]} 43. Qd8+ {[%clk 0:00:59.4]} 43... Kg7 {[%clk
0:00:19.8]} 44. Qd4+ {[%clk 0:01:00]} 44... Kh7 {[%clk 0:00:20.1]} 45. Qd3+
{[%clk 0:00:59.8]} 45... Kg8 {[%clk 0:00:18.9]} 46. Qd8+ {[%clk 0:00:54.9]}
46... Kh7 {[%clk 0:00:18.8]} 47. Qd3+ {[%clk 0:00:54.5]} 47... f5 {[%clk
0:00:19.5]} 48. Qxf3 {[%clk 0:00:27.5]} 48... Qxa7 {[%clk 0:00:19.3]} 49. Qc6
{[%clk 0:00:28.1]} 49... Qe7 {[%clk 0:00:19.3]} 50. g4 {[%clk 0:00:24.4]} 50...
fxg4 {[%clk 0:00:19]} 51. hxg4 {[%clk 0:00:25.3]} 51... Qf6 {[%clk 0:00:19.2]}
52. Qe4+ {[%clk 0:00:25.1]} 52... Kg7 {[%clk 0:00:19.4]} 53. Qb7+ {[%clk
0:00:25.1]} 53... Qf7 {[%clk 0:00:19.8]} 54. Qb2+ {[%clk 0:00:24.5]} 54... Kg6
{[%clk 0:00:19.5]} 55. Qc2+ {[%clk 0:00:24]} 55... Kg7 {[%clk 0:00:19.6]} 56.
Qc3+ {[%clk 0:00:24.2]} 56... Qf6 {[%clk 0:00:20.3]} 57. Qc7+ {[%clk 0:00:24.3]}
57... Kg8 {[%clk 0:00:20.6]} 58. Qc8+ {[%clk 0:00:23.9]} 58... Kf7 {[%clk
0:00:20.9]} 59. Qc7+ {[%clk 0:00:23.5]} 59... Qe7 {[%clk 0:00:21.2]} 60. Qc3
{[%clk 0:00:23.8]} 60... Qd6+ {[%clk 0:00:20.7]} 61. Kh3 {[%clk 0:00:22.7]}
61... Qf4 {[%clk 0:00:20.9]} 62. Qh8 {[%clk 0:00:19.2]} 62... Qf3+ {[%clk
0:00:21]} 63. Kh2 {[%clk 0:00:19.5]} 63... Qf2+ {[%clk 0:00:21.3]} 64. Kh3
{[%clk 0:00:18.4]} 64... Qh4+ {[%clk 0:00:21.7]} 65. Kg2 {[%clk 0:00:19]} 65...
Qxg4+ {[%clk 0:00:22.6]} 66. Kf2 {[%clk 0:00:19.9]} 66... Qf5+ {[%clk
0:00:21.8]} 67. Kg2 {[%clk 0:00:19.9]} 67... Qd5+ {[%clk 0:00:21.6]} 68. Kh2
{[%clk 0:00:19.3]} 68... Qd2+ {[%clk 0:00:20.7]} 69. Kg1 {[%clk 0:00:18.7]}
69... Qe1+ {[%clk 0:00:20.5]} 70. Kg2 {[%clk 0:00:18.8]} 70... Qe2+ {[%clk
0:00:20.9]} 71. Kg1 {[%clk 0:00:19]} 71... Qg4+ {[%clk 0:00:20.5]} 72. Kh2
{[%clk 0:00:18.8]} 72... Qf4+ {[%clk 0:00:20.5]} 73. Kg2 {[%clk 0:00:18.7]}
73... g4 {[%clk 0:00:19.8]} 74. Qh7+ {[%clk 0:00:18.2]} 74... Kf6 {[%clk
0:00:20.2]} 75. Qh8+ {[%clk 0:00:18.6]} 75... Kf5 {[%clk 0:00:20.7]} 76. Qh7+
{[%clk 0:00:18.9]} 76... Ke5 {[%clk 0:00:20.9]} 77. Qc7+ {[%clk 0:00:18.3]}
77... Ke4 {[%clk 0:00:21.2]} 78. Qc4+ {[%clk 0:00:16.9]} 78... Kf5 {[%clk
0:00:21.5]} 79. Qc8 {[%clk 0:00:15.3]} 79... Qf3+ {[%clk 0:00:20.9]} 80. Kg1
{[%clk 0:00:15.6]} 80... Qe3+ {[%clk 0:00:20]} 81. Kg2 {[%clk 0:00:15.3]} 81...
Qe4+ {[%clk 0:00:19.8]} 82. Kg1 {[%clk 0:00:15.7]} 82... g3 {[%clk 0:00:19.2]}
83. Qf8+ {[%clk 0:00:14.9]} 83... Kg4 {[%clk 0:00:19.4]} 84. Qg7+ {[%clk
0:00:15]} 84... Kf3 {[%clk 0:00:19.6]} 85. Qf6+ {[%clk 0:00:14.5]} 85... Qf4
{[%clk 0:00:19.9]} 86. Qxe6 {[%clk 0:00:12.8]} 86... Qe3+ {[%clk 0:00:19.7]} 87.
Qxe3+ {[%clk 0:00:12.1]} 87... Kxe3 {[%clk 0:00:20.6]} 88. Kg2 {[%clk
0:00:12.7]} 88... Kf4 {[%clk 0:00:21]} 89. Kh3 {[%clk 0:00:12.2]} 89... Kf3
{[%clk 0:00:21.3]} 90. Kh4 {[%clk 0:00:12.1]} 90... g2 {[%clk 0:00:22.2]} 91.
Kh5 {[%clk 0:00:12.3]} 91... g1=Q {[%clk 0:00:22.2]} 92. Kxh6 {[%clk 0:00:13.2]}
92... Qg8 {[%clk 0:00:22.8]} 93. Kh5 {[%clk 0:00:13.3]} 93... Kf4 {[%clk
0:00:22.9]} 94. Kh4 {[%clk 0:00:13.9]} 94... Qh7# {[%clk 0:00:22.8]} 0-1

[Event "*** SCC Grand Prix: Titled Tuesday Blitz"]
[Site "Chess.com"]
[Date "2020.07.14"]
[Round "1"]
[White "Fighter008"]
[Black "Nayemhaque22"]
[Result "1-0"]
[WhiteElo "2529"]
[BlackElo "2200"]
[TimeControl "180+1"]
[EndTime "10:09:45 PDT"]
[Termination "Fighter008 won on time"]

1. e4 {[%clk 0:02:58]} 1... c5 {[%clk 0:02:58.3]} 2. Nf3 {[%clk 0:02:56.8]} 2...
Nc6 {[%clk 0:02:56.7]} 3. Bb5 {[%clk 0:02:55.6]} 3... g6 {[%clk 0:02:55.6]} 4.
O-O {[%clk 0:02:54]} 4... Bg7 {[%clk 0:02:53.3]} 5. c3 {[%clk 0:02:54.1]} 5...
a6 {[%clk 0:02:49.5]} 6. Ba4 {[%clk 0:02:48]} 6... b5 {[%clk 0:02:46.8]} 7. Bc2
{[%clk 0:02:47.5]} 7... e5 {[%clk 0:02:46.4]} 8. a4 {[%clk 0:02:41.9]} 8... Bb7
{[%clk 0:02:38.1]} 9. Na3 {[%clk 0:02:38.6]} 9... Nge7 {[%clk 0:02:23.9]} 10. d3
{[%clk 0:02:35.6]} 10... O-O {[%clk 0:02:22.4]} 11. Be3 {[%clk 0:02:35.2]} 11...
b4 {[%clk 0:02:21.1]} 12. Nc4 {[%clk 0:02:34.2]} 12... d6 {[%clk 0:02:15.2]} 13.
a5 {[%clk 0:02:34.4]} 13... Rb8 {[%clk 0:01:57.4]} 14. d4 {[%clk 0:02:30.1]}
14... cxd4 {[%clk 0:01:52.7]} 15. cxd4 {[%clk 0:02:30]} 15... exd4 {[%clk
0:01:50.5]} 16. Nxd4 {[%clk 0:02:29.7]} 16... d5 {[%clk 0:01:35.9]} 17. Nxc6
{[%clk 0:02:07.2]} 17... Bxc6 {[%clk 0:01:34.2]} 18. Bb6 {[%clk 0:01:59.5]}
18... Qd7 {[%clk 0:01:27]} 19. exd5 {[%clk 0:01:49.1]} 19... Qxd5 {[%clk
0:01:25.5]} 20. Qxd5 {[%clk 0:01:44.4]} 20... Nxd5 {[%clk 0:01:25.5]} 21. Bc5
{[%clk 0:01:39.6]} 21... Rfd8 {[%clk 0:01:19]} 22. Be4 {[%clk 0:01:28.5]} 22...
Bb5 {[%clk 0:01:16]} 23. Rfc1 {[%clk 0:01:17.4]} 23... Nf4 {[%clk 0:01:14.5]}
24. Kh1 {[%clk 0:00:31.5]} 24... Bxc4 {[%clk 0:01:08.4]} 25. Rxc4 {[%clk
0:00:31.1]} 25... Bxb2 {[%clk 0:01:07.5]} 26. Rb1 {[%clk 0:00:31.4]} 26... Bc3
{[%clk 0:01:03.7]} 27. g3 {[%clk 0:00:31.2]} 27... Ne6 {[%clk 0:00:58.6]} 28.
Bb6 {[%clk 0:00:30.8]} 28... Rdc8 {[%clk 0:00:54.9]} 29. Bd3 {[%clk 0:00:28.7]}
29... Rxc4 {[%clk 0:00:50.1]} 30. Bxc4 {[%clk 0:00:29.6]} 30... Bd4 {[%clk
0:00:36.2]} 31. Bxe6 {[%clk 0:00:14.9]} 31... Bxb6 {[%clk 0:00:32]} 32. axb6
{[%clk 0:00:15.1]} 32... Rxb6 {[%clk 0:00:23.8]} 33. Bb3 {[%clk 0:00:13.9]}
33... a5 {[%clk 0:00:23.6]} 34. Kg2 {[%clk 0:00:14.5]} 34... Rc6 {[%clk
0:00:22.4]} 35. Ra1 {[%clk 0:00:14.3]} 35... Rc3 {[%clk 0:00:20.7]} 36. Bd5
{[%clk 0:00:14.1]} 36... Rc5 {[%clk 0:00:19.3]} 37. Bb3 {[%clk 0:00:13.3]} 37...
Kg7 {[%clk 0:00:19.1]} 38. Rd1 {[%clk 0:00:12]} 38... Rc3 {[%clk 0:00:18.6]} 39.
Bd5 {[%clk 0:00:10.9]} 39... b3 {[%clk 0:00:18.1]} 40. Ra1 {[%clk 0:00:10.2]}
40... b2 {[%clk 0:00:17.5]} 41. Rb1 {[%clk 0:00:10.5]} 41... Rc2 {[%clk
0:00:16.8]} 42. Bb3 {[%clk 0:00:10.7]} 42... Rd2 {[%clk 0:00:16.7]} 43. Kf3
{[%clk 0:00:11]} 43... Rd3+ {[%clk 0:00:16.5]} 44. Ke2 {[%clk 0:00:10.7]} 44...
Rxb3 {[%clk 0:00:15.8]} 45. Kd2 {[%clk 0:00:11.3]} 45... a4 {[%clk 0:00:16.7]}
46. Kc2 {[%clk 0:00:11.9]} 46... Ra3 {[%clk 0:00:15.5]} 47. Rxb2 {[%clk
0:00:11.4]} 47... Rf3 {[%clk 0:00:15.7]} 48. Kd1 {[%clk 0:00:11.1]} 48... a3
{[%clk 0:00:15.7]} 49. Ra2 {[%clk 0:00:10.4]} 49... h5 {[%clk 0:00:14.5]} 50.
Ke2 {[%clk 0:00:10.6]} 50... Rb3 {[%clk 0:00:14.2]} 51. Kf1 {[%clk 0:00:11.2]}
51... g5 {[%clk 0:00:13.7]} 52. Kg2 {[%clk 0:00:11.1]} 52... Kg6 {[%clk
0:00:13.7]} 53. Rc2 {[%clk 0:00:11.3]} 53... g4 {[%clk 0:00:12.6]} 54. Rc5
{[%clk 0:00:11.1]} 54... a2 {[%clk 0:00:10.9]} 55. Ra5 {[%clk 0:00:11]} 55...
Rb2 {[%clk 0:00:09.9]} 56. Kg1 {[%clk 0:00:11.4]} 56... f5 {[%clk 0:00:08.7]}
57. Kg2 {[%clk 0:00:11.5]} 57... Kf6 {[%clk 0:00:05.8]} 58. Ra8 {[%clk 0:00:08]}
58... Ke5 {[%clk 0:00:05.7]} 59. Ra4 {[%clk 0:00:08.7]} 59... Kd5 {[%clk
0:00:05.5]} 60. Ra5+ {[%clk 0:00:08.6]} 60... Kc4 {[%clk 0:00:05]} 61. h3 {[%clk
0:00:07.8]} 61... Kb3 {[%clk 0:00:02.1]} 62. hxg4 {[%clk 0:00:07.7]} 62... hxg4
{[%clk 0:00:01.1]} 63. Ra8 {[%clk 0:00:08.4]} 63... Kc2 {[%clk 0:00:01.2]} 64.
Rb8 {[%clk 0:00:09.1]} 64... Kb1 {[%clk 0:00:01]} 65. Re8 {[%clk 0:00:08.5]} 1-0

[Event "*** SCC Grand Prix: Titled Tuesday Blitz"]
[Site "Chess.com"]
[Date "2020.07.14"]
[Round "1"]
[White "barbara25"]
[Black "pedromartinez91"]
[Result "1/2-1/2"]
[WhiteElo "2214"]
[BlackElo "2528"]
[TimeControl "180+1"]
[EndTime "10:09:50 PDT"]
[Termination "Game drawn - insufficient material"]

1. e4 {[%clk 0:03:00.9]} 1... e6 {[%clk 0:02:59.6]} 2. d4 {[%clk 0:03:00.5]}
2... d5 {[%clk 0:02:59.8]} 3. Nc3 {[%clk 0:03:01.1]} 3... Nf6 {[%clk 0:02:59.7]}
4. Bg5 {[%clk 0:02:59.7]} 4... h6 {[%clk 0:02:59.1]} 5. Bxf6 {[%clk 0:02:55.4]}
5... Qxf6 {[%clk 0:03:00]} 6. exd5 {[%clk 0:02:55.4]} 6... Bb4 {[%clk
0:02:59.6]} 7. dxe6 {[%clk 0:02:54.6]} 7... Bxe6 {[%clk 0:03:00.5]} 8. Nf3
{[%clk 0:02:53.1]} 8... O-O {[%clk 0:03:00.2]} 9. Bd3 {[%clk 0:02:52.7]} 9... c5
{[%clk 0:02:59.5]} 10. O-O {[%clk 0:02:49.9]} 10... Bxc3 {[%clk 0:02:59.4]} 11.
bxc3 {[%clk 0:02:49.3]} 11... Nc6 {[%clk 0:02:53.4]} 12. Re1 {[%clk 0:02:49]}
12... Rfd8 {[%clk 0:02:52.7]} 13. Rb1 {[%clk 0:02:45.8]} 13... cxd4 {[%clk
0:02:40.5]} 14. cxd4 {[%clk 0:02:44.7]} 14... Nxd4 {[%clk 0:02:41.4]} 15. Nxd4
{[%clk 0:02:43.9]} 15... Rxd4 {[%clk 0:02:42.3]} 16. Qe2 {[%clk 0:02:37.8]}
16... b6 {[%clk 0:02:37.5]} 17. a3 {[%clk 0:02:36.5]} 17... Rad8 {[%clk
0:02:35.8]} 18. Rb4 {[%clk 0:02:34.1]} 18... Qf4 {[%clk 0:02:17.3]} 19. Rxd4
{[%clk 0:02:32.6]} 19... Qxd4 {[%clk 0:02:18.2]} 20. h3 {[%clk 0:02:27.2]} 20...
Rd5 {[%clk 0:02:00.7]} 21. Rd1 {[%clk 0:02:19.9]} 21... Qf4 {[%clk 0:01:49.1]}
22. Re1 {[%clk 0:02:07]} 22... Rd4 {[%clk 0:01:44.5]} 23. Qe3 {[%clk 0:01:57]}
23... Qxe3 {[%clk 0:01:43.8]} 24. Rxe3 {[%clk 0:01:54.5]} 24... Ra4 {[%clk
0:01:42.9]} 25. f3 {[%clk 0:01:48]} 25... Kf8 {[%clk 0:01:41.5]} 26. Be2 {[%clk
0:01:46.4]} 26... Ra5 {[%clk 0:01:40.2]} 27. Kf2 {[%clk 0:01:44.9]} 27... Rc5
{[%clk 0:01:40.2]} 28. Bd3 {[%clk 0:01:44.9]} 28... Ke7 {[%clk 0:01:37.3]} 29.
h4 {[%clk 0:01:42.7]} 29... Kd6 {[%clk 0:01:35.1]} 30. g3 {[%clk 0:01:42.8]}
30... Rc3 {[%clk 0:01:35]} 31. Be4 {[%clk 0:01:28.1]} 31... Rc5 {[%clk
0:01:34.9]} 32. Ke2 {[%clk 0:01:25.3]} 32... f5 {[%clk 0:01:27.3]} 33. Bd3
{[%clk 0:01:23.8]} 33... Rc3 {[%clk 0:01:27.2]} 34. a4 {[%clk 0:01:12.2]} 34...
Ra3 {[%clk 0:01:27.1]} 35. Bb5 {[%clk 0:01:08.7]} 35... Rxe3+ {[%clk 0:01:21.1]}
36. Kxe3 {[%clk 0:01:08.8]} 36... g5 {[%clk 0:01:15.2]} 37. hxg5 {[%clk
0:01:08.2]} 37... hxg5 {[%clk 0:01:16.1]} 38. Kd4 {[%clk 0:01:08.5]} 38... Bc8
{[%clk 0:01:13]} 39. f4 {[%clk 0:01:07.9]} 39... gxf4 {[%clk 0:01:11.4]} 40.
gxf4 {[%clk 0:01:07.8]} 40... Be6 {[%clk 0:01:10.6]} 41. c3 {[%clk 0:01:03.8]}
41... Bc8 {[%clk 0:01:10.1]} 42. Bd3 {[%clk 0:01:01.7]} 42... Bd7 {[%clk
0:01:09.3]} 43. Bb5 {[%clk 0:01:01.2]} 43... Bc8 {[%clk 0:01:00.8]} 44. Bd3
{[%clk 0:01:00.5]} 44... Be6 {[%clk 0:00:55.2]} 45. Bb5 {[%clk 0:00:57.5]} 45...
a5 {[%clk 0:00:54.9]} 46. Be8 {[%clk 0:00:53.2]} 46... Bb3 {[%clk 0:00:52.8]}
47. Bb5 {[%clk 0:00:51.4]} 47... Bc2 {[%clk 0:00:52.9]} 48. Be8 {[%clk
0:00:50.7]} 48... Be4 {[%clk 0:00:52.6]} 49. Bb5 {[%clk 0:00:50.2]} 49... Bc2
{[%clk 0:00:48.2]} 50. Be8 {[%clk 0:00:49.6]} 50... Bb3 {[%clk 0:00:48.2]} 51.
Bb5 {[%clk 0:00:49.1]} 51... Bf7 {[%clk 0:00:48]} 52. Bd3 {[%clk 0:00:36.5]}
52... Be8 {[%clk 0:00:48.1]} 53. Bc2 {[%clk 0:00:36.2]} 53... Bd7 {[%clk
0:00:47.6]} 54. Bd1 {[%clk 0:00:34.1]} 54... Bc6 {[%clk 0:00:35.2]} 55. Bb3
{[%clk 0:00:32.5]} 55... Be4 {[%clk 0:00:34.6]} 56. Bd1 {[%clk 0:00:32]} 56...
Kc6 {[%clk 0:00:31]} 57. c4 {[%clk 0:00:27.6]} 57... Kd6 {[%clk 0:00:30.1]} 58.
Bb3 {[%clk 0:00:26.5]} 58... Bc6 {[%clk 0:00:22.3]} 59. Bc2 {[%clk 0:00:25.3]}
59... Bd7 {[%clk 0:00:22.7]} 60. Bd1 {[%clk 0:00:24.9]} 60... Be6 {[%clk
0:00:22.8]} 61. Bc2 {[%clk 0:00:24.7]} 61... Bc8 {[%clk 0:00:23.3]} 62. Bb3
{[%clk 0:00:24.4]} 62... Bd7 {[%clk 0:00:23.3]} 63. Bc2 {[%clk 0:00:24.3]} 63...
Be6 {[%clk 0:00:23.2]} 64. Bd1 {[%clk 0:00:23.8]} 64... Bc8 {[%clk 0:00:23.3]}
65. Bc2 {[%clk 0:00:23.4]} 65... Bd7 {[%clk 0:00:23.8]} 66. Bb3 {[%clk
0:00:17.5]} 66... Bc6 {[%clk 0:00:24.2]} 67. Bc2 {[%clk 0:00:16.7]} 67... Ke6
{[%clk 0:00:24.5]} 68. Bd1 {[%clk 0:00:16.4]} 68... Be4 {[%clk 0:00:24.5]} 69.
Bb3 {[%clk 0:00:15.9]} 69... Kd6 {[%clk 0:00:24.7]} 70. Bd1 {[%clk 0:00:15.6]}
70... Bb1 {[%clk 0:00:24.9]} 71. Bb3 {[%clk 0:00:15.3]} 71... Kc6 {[%clk
0:00:25.1]} 72. Bd1 {[%clk 0:00:15]} 72... Be4 {[%clk 0:00:24.5]} 73. Bb3 {[%clk
0:00:15]} 73... Kc7 {[%clk 0:00:23.4]} 74. c5 {[%clk 0:00:14.3]} 74... Kc6
{[%clk 0:00:20.2]} 75. cxb6 {[%clk 0:00:14.2]} 75... Kxb6 {[%clk 0:00:21.1]} 76.
Bd1 {[%clk 0:00:14.4]} 76... Kc6 {[%clk 0:00:21.5]} 77. Bb3 {[%clk 0:00:14.3]}
77... Kd6 {[%clk 0:00:21.9]} 78. Bd1 {[%clk 0:00:14.4]} 78... Bc6 {[%clk
0:00:22.3]} 79. Bb3 {[%clk 0:00:14.2]} 79... Bd7 {[%clk 0:00:21.2]} 80. Bc2
{[%clk 0:00:14.4]} 80... Be6 {[%clk 0:00:21]} 81. Bd1 {[%clk 0:00:14.4]} 81...
Bd5 {[%clk 0:00:21.2]} 82. Bc2 {[%clk 0:00:14.5]} 82... Be6 {[%clk 0:00:21.6]}
83. Bd1 {[%clk 0:00:14.7]} 83... Bc8 {[%clk 0:00:22.1]} 84. Bc2 {[%clk 0:00:15]}
84... Bd7 {[%clk 0:00:21.8]} 85. Bd1 {[%clk 0:00:15.3]} 85... Kc6 {[%clk
0:00:18.6]} 86. Bc2 {[%clk 0:00:15]} 86... Kb6 {[%clk 0:00:18.5]} 87. Ke5 {[%clk
0:00:11.5]} 87... Kc5 {[%clk 0:00:18.7]} 88. Bxf5 {[%clk 0:00:11.4]} 88... Bxa4
{[%clk 0:00:19.1]} 89. Be6 {[%clk 0:00:10.5]} 89... Be8 {[%clk 0:00:17.1]} 90.
f5 {[%clk 0:00:10.6]} 90... a4 {[%clk 0:00:17.5]} 91. f6 {[%clk 0:00:10.7]}
91... a3 {[%clk 0:00:17.8]} 92. f7 {[%clk 0:00:11]} 92... Bxf7 {[%clk 0:00:14]}
93. Bxf7 {[%clk 0:00:11.5]} 93... a2 {[%clk 0:00:14.9]} 94. Bxa2 {[%clk
0:00:10.6]} 1/2-1/2